bitfinex/quotes_ETHUSD_20220212
["timestamp","ask_amount","ask_price","bid_price","bid_amount"]
[1644703330762,0.02795299,2885.3,2884.6,3.03291]
[1644703331163,0.02795299,2885.3,2885.0,0.00281192]
[1644703331969,0.02795299,2885.3,2884.6,1.3]
[1644703332169,0.02795299,2885.3,2885.0,0.00281187]
[1644703332570,0.88578623,2885.2,2885.0,0.00281187]
[1644703332773,0.00562373,2884.8,2883.6,3.8858]
[1644703333012,0.00562373,2884.8,2883.8,6.4006]
[1644703333713,0.67301712,2884.2,2883.8,6.4006]
[1644703334113,0.67301712,2884.2,2883.6,0.1733]
[1644703334315,0.00562373,2884.8,2883.6,0.1733]
[1644703334517,0.1733,2884.7,2883.6,0.1733]
[1644703334715,0.1733,2884.7,2883.6,0.1233]
[1644703334716,0.7733,2884.7,2883.6,0.1233]
[1644703334915,1.7733,2884.7,2883.9,0.00281299]
[1644703335116,0.1733,2884.7,2883.9,0.00281299]
[1644703335319,8.6733,2884.7,2883.9,0.00281299]
[1644703335516,8.6733,2884.7,2883.6,0.1233]
[1644703335517,5.0,2884.5,2883.6,0.1233]
[1644703335718,0.1733,2884.4,2883.6,0.1233]
[1644703335921,0.1733,2884.4,2884.2,0.00280815]
[1644703336772,4.09200761,2884.4,2883.6,0.1233]
[1644703336978,4.09200761,2884.4,2884.2,0.00935347]
[1644703337572,4.39200761,2884.4,2884.2,0.00935347]
[1644703337773,4.89818278,2884.3,2884.2,0.00935347]
[1644703337978,4.89818278,2884.3,2883.2,0.25]
[1644703338172,0.61996514,2883.5,2882.9,0.60695]
[1644703338373,0.61996514,2883.5,2883.0,0.03742925]
[1644703339173,0.61996514,2883.5,2882.9,0.60695]
[1644703339374,0.61996514,2883.5,2882.9,0.55695]
[1644703339574,3.59818278,2884.3,2883.1,0.00766104]
[1644703340421,3.62151758,2884.3,2883.0,0.86704]
[1644703340627,3.62151758,2884.3,2883.6,0.00765984]
[1644703340628,0.0233348,2884.3,2883.6,0.00765984]
[1644703341426,0.0233348,2884.3,2883.6,0.50865984]
[1644703341625,0.0233348,2884.3,2883.6,7.966]
[1644703341827,0.0233348,2884.3,2883.8,0.00765918]
[1644703342828,0.0233348,2884.3,2883.6,10.91291]
[1644703343031,0.0233348,2884.3,2883.9,0.00765891]
[1644703344029,0.0233348,2884.3,2883.3,14.46154039]
[1644703344030,0.0233348,2884.3,2883.3,0.00094039]
[1644703344281,0.0233348,2884.3,2884.0,0.00788334]
[1644703344483,0.1733,2884.2,2884.0,0.00788334]
[1644703345281,0.1733,2884.2,2883.4,0.86691]
[1644703345481,0.19327584,2884.2,2883.4,0.77479334]
[1644703346081,0.01997584,2884.2,2883.4,0.77479334]
[1644703347486,0.59810207,2884.1,2883.3,0.60687]
[1644703347911,0.59810207,2884.1,2883.7,0.00236131]
[1644703348914,0.59810207,2884.1,2883.3,0.60687]
[1644703349116,0.59810207,2884.1,2883.8,0.00785104]
[1644703350117,0.6180525,2884.1,2883.3,0.60687]
[1644703350319,0.6180525,2884.1,2883.8,0.0078509]
[1644703350517,0.7913525,2884.1,2883.8,0.0078509]
[1644703350719,0.19325043,2884.1,2883.8,0.0078509]
[1644703351318,0.19325043,2884.1,2883.3,0.60687]
[1644703351518,0.01995043,2884.1,2883.8,0.00783603]
[1644703351966,0.5368292,2883.9,2883.8,0.00783603]
[1644703352366,0.5368292,2883.9,2883.0,0.25]
[1644703352565,0.5368292,2883.9,2882.9,5.47331]
[1644703352765,0.5368292,2883.9,2883.7,0.0078363]
[1644703353166,0.01567259,2883.6,2883.1,0.03135157]
[1644703353565,0.01567259,2883.6,2882.9,2.34091]
[1644703353969,0.63236416,2883.4,2882.9,2.34091]
[1644703354171,0.63236416,2883.4,2882.4,0.25]
[1644703354367,0.63236416,2883.4,2882.3,3.46719]
[1644703354568,0.63236416,2883.4,2882.0,0.501]
[1644703354764,0.1734,2883.3,2882.0,0.501]
[1644703354964,0.1734,2883.3,2882.0,2.23549]
[1644703355165,0.63236416,2883.4,2882.7,0.00235824]
[1644703356020,0.63236416,2883.4,2882.2,0.86727]
[1644703356216,0.63236416,2883.4,2882.2,1.30246181]
[1644703356419,0.63236416,2883.4,2882.2,2.30246181]
[1644703356616,0.63236416,2883.4,2882.2,1.30246181]
[1644703356815,0.63236416,2883.4,2882.2,2.30246181]
[1644703357016,0.63236416,2883.4,2882.2,1.30246181]
[1644703357217,0.63236416,2883.4,2882.2,2.30246181]
[1644703357417,0.63236416,2883.4,2882.2,1.04067]
[1644703357716,0.01567259,2883.6,2882.2,1.04067]
[1644703358016,0.1734,2883.5,2882.2,0.86727]
[1644703358216,0.1734,2883.5,2882.1,0.60709]
[1644703358618,0.1734,2883.5,2882.4,0.00253352]
[1644703358819,0.51362486,2883.4,2882.4,0.00253352]
[1644703359021,0.1734,2883.3,2882.4,0.00253352]
[1644703359464,0.68926448,2882.7,2882.4,0.00253352]
[1644703359661,0.68926448,2882.7,2881.8,0.25000001]
[1644703359862,0.1734,2883.3,2882.4,0.00253352]
[1644703360061,0.1734,2883.3,2881.5,2.96798]
[1644703360062,0.1734,2883.3,2881.5,3.09803016]
[1644703360261,0.1734,2883.3,2881.5,0.3]
[1644703360463,0.19314706,2883.3,2881.4,8.9265]
[1644703360663,0.19314706,2883.3,2881.6,0.86734]
[1644703360863,0.51686745,2882.7,2881.6,1.16734]
[1644703361063,0.51686745,2882.7,2881.8,0.60717]
[1644703361265,0.51686745,2882.7,2881.8,1.47455]
[1644703361461,0.19314706,2883.3,2881.8,1.47455]
[1644703361666,0.19314706,2883.3,2881.8,1.77455]
[1644703361867,0.19314706,2883.3,2882.0,7.48]
[1644703362066,0.01974706,2883.3,2882.0,7.48]
[1644703362467,0.64739307,2883.1,2882.2,0.86727]
[1644703362916,0.1734,2883.0,2882.2,0.86727]
[1644703364719,0.00986201,2882.7,2882.2,1.47435]
[1644703365320,0.65808433,2882.6,2882.2,1.47435]
[1644703365521,0.65808433,2882.6,2882.0,9.21451]
[1644703365720,0.00986201,2882.7,2882.0,9.21451]
[1644703365721,0.1734,2883.1,2882.0,7.60451]
[1644703365920,0.00917295,2882.5,2882.0,9.21451]
[1644703366866,0.1734,2883.1,2882.0,9.21451]
[1644703366867,0.64296075,2882.6,2882.0,9.21451]
[1644703367065,0.00917308,2882.4,2882.0,9.21451]
[1644703368064,0.64296075,2882.6,2882.0,9.21451]
[1644703368263,0.00917312,2882.3,2882.0,9.21451]
[1644703369370,0.1734,2883.1,2882.0,1.73451]
[1644703369566,0.00897698,2882.3,2882.0,1.90791]
[1644703370412,0.01954358,2882.5,2882.0,1.90791]
[1644703370614,0.00902257,2882.3,2882.0,1.90791]
[1644703371613,0.01954358,2882.5,2882.0,1.73451]
[1644703372020,0.19294358,2882.5,2881.7,6.6515]
[1644703372417,0.51461299,2882.2,2881.8,0.86738]
[1644703372617,0.51461299,2882.2,2881.8,1.04078]
[1644703372817,0.51461299,2882.2,2881.8,0.94078]
[1644703373019,0.51461299,2882.2,2881.8,0.1734]
[1644703373219,0.52366845,2882.2,2881.8,0.1734]
[1644703373619,0.52366845,2882.2,2881.6,1.3]
[1644703374180,0.51461299,2882.2,2881.6,1.3]
[1644703374368,0.52430332,2882.2,2881.6,1.3]
[1644703374767,0.00969033,2882.2,2881.6,1.3]
[1644703374968,0.00969033,2882.2,2881.6,0.3]
[1644703375168,0.01954358,2882.5,2881.6,0.3]
[1644703375369,0.02732539,2882.4,2881.6,0.3]
[1644703375569,0.00969033,2882.2,2881.6,0.3]
[1644703376572,0.56075685,2882.4,2881.6,0.3]
[1644703376772,0.00966413,2882.2,2881.6,0.3]
[1644703376974,0.00966413,2882.2,2881.7,0.1734]
[1644703377177,0.00966413,2882.2,2881.6,0.4734]
[1644703377376,0.00966413,2882.2,2881.6,1.7734]
[1644703377576,0.56075685,2882.4,2881.6,1.7734]
[1644703377778,0.02732539,2882.4,2881.6,1.7734]
[1644703378014,0.00966413,2882.2,2881.6,0.1734]
[1644703378816,0.02732539,2882.4,2881.6,0.1734]
[1644703379012,0.02732539,2882.4,2881.5,1.2412]
[1644703379211,0.00966413,2882.2,2881.5,1.54891275]
[1644703380016,0.02732539,2882.4,2881.5,1.5412]
[1644703380213,0.0226821,2882.1,2881.5,1.2412]
[1644703380415,0.0226821,2882.1,2881.5,0.00772556]
[1644703381216,0.0226821,2882.1,2881.4,0.1734]
[1644703381673,0.0226821,2882.1,2881.5,0.00772556]
[1644703382468,0.0226821,2882.1,2881.2,0.1734]
[1644703382666,0.0226821,2882.1,2881.5,0.00772556]
[1644703383270,0.71295368,2881.7,2881.5,0.00772556]
[1644703383469,0.71295368,2881.7,2881.1,10.14634]
[1644703383668,0.71295368,2881.7,2881.1,2.34234]
[1644703384270,0.1960821,2882.1,2881.1,2.34234]
[1644703384468,0.1960821,2882.1,2881.2,0.1734]
[1644703384670,0.1960821,2882.1,2881.1,2.01574]
[1644703384870,0.1960821,2882.1,2881.1,2.61574]
[1644703385076,0.00735702,2881.8,2881.1,2.61574]
[1644703385274,0.00735702,2881.8,2881.3,0.86751]
[1644703385518,0.00735702,2881.8,2881.4,0.84782]
[1644703385718,0.0226821,2882.1,2881.6,1.7344]
[1644703385917,0.0226821,2882.1,2881.7,7.7458]
[1644703386323,0.0226821,2882.1,2881.8,1.0]
[1644703386521,0.0226821,2882.1,2881.9,0.501]
[1644703386722,0.0226821,2882.1,2881.9,0.6744]
[1644703386922,0.158213,2883.5,2882.0,5.35]
[1644703387122,0.158213,2883.5,2882.0,6.71831]
[1644703387324,0.158213,2883.5,2882.1,1.3]
[1644703387525,0.158213,2883.5,2882.2,0.6744]
[1644703387725,0.18907259,2883.6,2882.2,0.6744]
[1644703387923,0.18907259,2883.6,2882.3,7.3356]
[1644703388139,1.1847,2884.6,2882.6,11.5]
[1644703388332,0.00562373,2884.8,2883.0,0.60689]
[1644703388525,0.00562373,2884.8,2883.8,5.0]
[1644703388723,0.39152296,2886.1,2884.1,5.3]
[1644703388724,0.39252296,2886.1,2884.1,5.3]
[1644703388925,0.39252296,2886.1,2884.4,5.0]
[1644703388926,1.47509447,2886.0,2884.4,5.0]
[1644703389173,0.77415983,2885.9,2884.5,0.501]
[1644703389366,1.47509447,2885.8,2884.5,1.501]
[1644703389564,0.77415983,2885.9,2884.6,0.86643]
[1644703389765,0.77415983,2885.9,2884.7,0.501]
[1644703389766,1.47487717,2885.8,2884.7,0.501]
[1644703389965,0.1731,2885.8,2884.7,0.501]
[1644703390171,0.00735603,2885.3,2884.4,0.501]
[1644703390372,0.57658535,2885.0,2884.4,0.501]
[1644703391270,0.00735603,2884.8,2884.4,0.501]
[1644703392071,0.56769281,2885.1,2884.4,0.501]
[1644703392471,0.010119,2884.7,2884.4,0.501]
[1644703392671,0.010119,2884.7,2884.5,0.1733]
[1644703393129,0.010119,2884.7,2884.1,0.751]
[1644703393330,1.40861902,2886.3,2884.0,1.2182]
[1644703393331,0.68982756,2884.3,2884.0,1.2182]
[1644703393529,0.68982756,2884.3,2883.7,0.6743]
[1644703393730,0.1733,2885.1,2883.7,0.501]
[1644703393930,0.1733,2885.5,2883.8,0.60673]
[1644703394130,1.1734,2885.6,2883.9,3.10101]
[1644703394329,1.1734,2885.6,2884.0,0.1733]
[1644703394530,1.1734,2885.6,2884.1,0.501]
[1644703394730,0.58381462,2884.7,2884.2,0.1733]
[1644703394931,0.58381462,2884.7,2884.3,0.501]
[1644703395332,0.61327608,2884.7,2884.5,0.04375438]
[1644703395730,0.02946146,2884.7,2884.5,0.04375438]
[1644703395932,6.146e-05,2884.7,2884.6,0.6743]
[1644703396336,6.146e-05,2884.7,2884.6,1.2743]
[1644703396769,6.146e-05,2884.7,2884.6,0.6743]
[1644703396968,6.146e-05,2884.7,2884.6,1.101]
[1644703397368,6.146e-05,2884.7,2884.6,1.2743]
[1644703397766,6.146e-05,2884.7,2884.6,0.7733]
[1644703398169,6.146e-05,2884.7,2884.6,7.7495]
[1644703398370,6.146e-05,2884.7,2884.6,8.7495]
[1644703398768,6.146e-05,2884.7,2884.6,1.4733]
[1644703398967,6.146e-05,2884.7,2884.6,1.9743]
[1644703399166,6.146e-05,2884.7,2884.6,0.9743]
[1644703399368,6.146e-05,2884.7,2884.6,2.14639129]
[1644703399567,6.146e-05,2884.7,2884.6,1.14639129]
[1644703399768,6.146e-05,2884.7,2884.6,2.14639129]
[1644703400412,0.0095151,2885.4,2884.6,2.14639129]
[1644703400611,1.56640001,2886.3,2884.9,1.47298]
[1644703400816,0.00667792,2885.4,2885.0,0.501]
[1644703401213,0.00667792,2885.4,2885.0,1.501]
[1644703401818,3.78420125,2886.4,2885.3,0.86634]
[1644703401819,0.00350125,2886.4,2885.3,0.86634]
[1644703402017,0.00350125,2886.4,2885.3,1.47277]
[1644703402018,0.00667919,2885.4,2885.3,1.47277]
[1644703402218,7.919e-05,2885.4,2885.3,2.57377]
[1644703402418,7.919e-05,2885.4,2885.3,3.74586129]
[1644703402620,7.919e-05,2885.4,2885.3,2.91896129]
[1644703402818,7.919e-05,2885.4,2885.3,3.91896129]
[1644703403020,0.00350125,2886.4,2885.4,0.3]
[1644703403221,0.00350125,2886.4,2885.8,5.0]
[1644703403424,0.001,2887.2,2885.9,4.27145]
[1644703403425,0.00450125,2887.2,2885.9,4.27145]
[1644703403620,0.00350125,2887.0,2886.0,0.3]
[1644703403821,0.00350125,2887.2,2886.1,0.6741]
[1644703404019,0.00350125,2887.6,2886.1,0.84619129]
[1644703404277,0.5714566,2887.3,2886.3,1.7316]
[1644703404476,0.00688203,2886.8,2886.4,0.501]
[1644703404676,0.702,2886.3,2886.2,1.0]
[1644703404875,0.702,2886.3,2886.2,0.501]
[1644703405278,0.702,2886.3,2885.6,7.258]
[1644703405279,0.702,2886.3,2885.6,1.47254]
[1644703406477,0.702,2886.3,2885.7,2.49776]
[1644703406677,0.702,2886.3,2885.8,1.0]
[1644703406879,0.00688203,2886.1,2885.7,3.79776]
[1644703407677,0.702,2886.3,2885.7,3.79776]
[1644703407922,0.00967752,2886.0,2885.7,3.79776]
[1644703408834,0.00967752,2886.0,2885.6,0.8662]
[1644703409026,0.702,2886.3,2885.5,1.21259]
[1644703409229,0.00967756,2886.0,2885.5,1.21259]
[1644703410026,0.00967756,2886.0,2885.9,0.04421515]
[1644703410229,0.702,2886.3,2885.9,0.04421515]
[1644703410428,0.74070484,2886.3,2885.9,0.04421515]
[1644703410630,0.74070484,2886.3,2885.9,0.65052515]
[1644703411029,0.74070484,2886.3,2886.0,0.3]
[1644703411435,0.702,2886.3,2886.0,0.3]
[1644703411677,0.71147683,2886.3,2886.0,0.3]
[1644703412478,0.702,2886.3,2886.0,0.3]
[1644703412879,0.70866056,2886.3,2886.0,0.3]
[1644703413082,0.70866056,2886.3,2885.9,0.04421515]
[1644703413480,0.70140909,2886.0,2885.9,0.04421515]
[1644703413679,0.68069059,2886.0,2885.9,0.04421515]
[1644703414081,0.00666056,2886.2,2885.9,0.04421515]
[1644703414879,0.702,2886.3,2885.9,0.04421515]
[1644703415080,0.54531912,2886.0,2885.9,0.04421515]
[1644703415279,0.00687551,2886.2,2886.1,0.04453268]
[1644703416115,0.702,2886.3,2886.1,0.04453268]
[1644703416320,1.38966693,2886.3,2886.1,0.04453268]
[1644703417421,1.37997969,2886.3,2886.1,0.04453268]
[1644703417623,1.38966688,2886.3,2886.1,0.04453268]
[1644703418624,1.37997969,2886.3,2886.1,0.04453268]
[1644703418822,1.38945093,2886.3,2886.1,0.04453268]
[1644703419770,0.02829913,2886.2,2886.1,0.04453268]
[1644703424722,0.08906536,2885.9,2885.8,1.16619]
[1644703426322,0.08906536,2885.9,2885.8,2.37873]
[1644703427178,0.08906536,2885.9,2885.8,2.55193]
[1644703427375,0.08906536,2885.9,2885.8,3.55193]
[1644703428373,0.08906536,2885.9,2885.8,3.37873]
[1644703429574,0.08906536,2885.9,2885.8,3.87973]
[1644703430422,0.10834106,2885.9,2885.8,3.87973]
[1644703431725,0.10834106,2885.9,2885.8,3.88067526]
[1644703433625,0.10834106,2885.9,2885.8,1.71448526]
[1644703433824,0.10834106,2885.9,2885.8,0.50194526]
[1644703434027,0.10834106,2885.9,2885.8,0.00094526]
[1644703435269,0.10834106,2885.9,2885.8,0.50194526]
[1644703435668,0.10834106,2885.9,2885.8,0.80194526]
[1644703436469,0.10834106,2885.9,2885.8,0.801]
[1644703440335,0.05834106,2885.9,2885.8,0.801]
[1644703440538,0.05834106,2885.9,2885.8,0.501]
[1644703442473,0.05834106,2885.9,2885.2,0.009376]
[1644703442679,0.05834106,2885.9,2884.9,0.25]
[1644703442873,0.05834106,2885.9,2885.2,0.009376]
[1644703443472,0.68904817,2885.3,2885.2,0.009376]
[1644703443873,0.05834106,2885.9,2884.6,3.0]
[1644703444074,0.00667305,2885.7,2884.6,3.0]
[1644703444274,0.00667305,2885.7,2884.7,0.1731]
[1644703444875,0.59784192,2885.4,2884.7,0.1731]
[1644703445076,0.59784192,2885.4,2884.6,3.1733]
[1644703446319,0.59784192,2885.4,2884.6,3.4733]
[1644703446518,0.59784192,2885.4,2884.9,0.00936192]
[1644703447324,0.59784192,2885.4,2884.6,3.4733]
[1644703447528,0.59784192,2885.4,2885.0,0.00936144]
[1644703448031,0.00968208,2885.5,2885.0,0.00936144]
[1644703448627,0.08015003,2885.9,2884.8,0.9741]
[1644703448827,0.00968232,2885.5,2885.1,0.00936111]
[1644703449028,0.55317907,2885.5,2885.1,0.00936111]
[1644703449770,3.53536269,2885.4,2884.6,3.0]
[1644703450168,0.01909261,2885.3,2885.2,0.00936095]
[1644703450570,0.01909261,2885.3,2884.6,3.0]
[1644703450571,0.01872189,2885.1,2884.6,3.0]
[1644703451570,0.5121806,2884.9,2884.6,3.0]
[1644703454919,0.5121806,2884.9,2884.6,3.00933933]
[1644703455121,0.03938763,2884.8,2884.6,3.00933933]
[1644703455320,0.50156823,2884.9,2884.6,3.00933933]
[1644703455624,0.01872189,2885.1,2884.6,3.00933933]
[1644703455821,0.01872189,2885.1,2884.6,3.0]
[1644703456020,0.01872189,2885.1,2884.6,3.00760753]
[1644703456870,0.64409991,2884.9,2884.6,3.00760753]
[1644703457069,0.64409991,2884.9,2884.6,3.0]
[1644703457269,0.64409991,2884.9,2884.7,0.00760726]
[1644703457868,0.01872189,2885.1,2884.7,0.00760726]
[1644703458071,0.15162839,2885.7,2884.8,3.25]
[1644703458274,3.8891,2885.8,2884.9,0.3]
[1644703458469,3.74640452,2886.2,2884.8,0.3]
[1644703458470,0.00960663,2885.4,2884.8,0.00760713]
[1644703459472,0.00960663,2885.4,2884.7,1.1733]
[1644703459473,0.52126758,2885.6,2884.7,1.1733]
[1644703459674,0.00732524,2885.5,2884.7,1.1733]
[1644703460075,0.01884403,2884.8,2884.7,1.21544049]
[1644703460276,0.01884403,2884.8,2884.7,0.04214049]
[1644703465191,3.49516255,2884.8,2884.7,0.04214049]
[1644703465390,3.43711498,2884.8,2884.5,0.0422665]
[1644703465591,3.3180471,2884.8,2884.5,0.0422665]
[1644703466492,1.1093,2884.9,2884.5,0.0422665]
[1644703467793,0.68539283,2884.6,2884.5,0.0422665]
[1644703468216,0.68539283,2884.6,2884.5,0.0672665]
[1644703470215,0.68539283,2884.6,2884.5,0.025]
[1644703471226,0.68539283,2884.6,2884.1,0.25]
[1644703471227,0.19510981,2884.3,2884.1,0.25]
[1644703471425,0.19510981,2884.3,2883.7,0.1733]
[1644703471672,0.19510981,2884.3,2884.0,0.0374054]
[1644703472673,0.19510981,2884.3,2883.4,0.1733]
[1644703472973,0.19510981,2884.3,2884.0,0.00280537]
[1644703473777,0.19510981,2884.3,2883.6,0.1733]
[1644703473975,0.19510981,2884.3,2883.5,0.7733]
[1644703474175,0.19510981,2884.3,2884.0,0.00280537]
[1644703474774,0.19510981,2884.3,2883.5,0.48452332]
[1644703474976,0.19510981,2884.3,2883.5,0.4733]
[1644703475426,0.02067772,2884.2,2883.5,0.1733]
[1644703475822,0.02067772,2884.2,2883.6,2.23448]
[1644703476021,0.02067772,2884.2,2883.7,0.1733]
[1644703476222,0.02067772,2884.2,2883.8,0.501]
[1644703476620,0.02067772,2884.2,2883.8,0.97588989]
[1644703476820,0.02067772,2884.2,2883.9,0.17209129]
[1644703477021,0.02067772,2884.2,2883.9,0.67309129]
[1644703477619,0.02067772,2884.2,2883.9,0.6758898]
[1644703478621,0.02067772,2884.2,2883.9,0.67309129]
[1644703478822,0.02067772,2884.2,2883.9,0.68241263]
[1644703479023,0.02067772,2884.2,2884.0,0.1733]
[1644703479467,0.01012155,2884.9,2884.2,6.5]
[1644703479664,0.01012155,2884.9,2884.4,5.0]
[1644703479865,0.001,2886.2,2884.6,5.0]
[1644703480067,0.001,2886.2,2885.0,5.0]
[1644703480068,0.03906536,2885.9,2885.0,5.0]
[1644703480268,0.03906536,2885.9,2885.2,5.0]
[1644703480471,1.70452669,2886.3,2885.5,6.5]
[1644703480666,1.70452669,2886.3,2885.7,5.0]
[1644703480667,2.669e-05,2886.3,2885.7,5.0]
[1644703480868,0.00352841,2886.2,2885.8,0.501]
[1644703481068,2.669e-05,2886.3,2885.9,7.9844]
[1644703481268,2.669e-05,2886.3,2886.0,0.501]
[1644703481469,2.669e-05,2886.3,2886.2,1.7318]
[1644703481673,2.669e-05,2886.3,2886.2,2.5328]
[1644703481869,2.669e-05,2886.3,2886.2,3.5328]
[1644703482069,2.669e-05,2886.3,2886.2,3.8328]
[1644703482269,0.65977541,2887.3,2886.3,6.5]
[1644703482469,0.65977541,2887.3,2886.6,1.47212]
[1644703482939,0.65977541,2887.3,2886.6,0.6]
[1644703483136,0.65977541,2887.3,2886.4,1.101]
[1644703483336,0.65977541,2887.3,2886.4,0.801]
[1644703483537,0.65977541,2887.3,2886.4,1.101]
[1644703483737,0.00730002,2887.0,2886.4,1.101]
[1644703484137,0.00730002,2887.0,2886.6,0.86595]
[1644703484341,0.00730002,2887.0,2886.6,1.77211]
[1644703484739,0.68220154,2887.5,2886.6,1.77211]
[1644703484938,0.01012378,2886.9,2886.6,1.77211]
[1644703485338,0.01012378,2886.9,2886.6,0.3]
[1644703485538,0.01012378,2886.9,2886.6,1.47211]
[1644703485938,0.68220154,2887.5,2886.6,2.47211]
[1644703486138,0.00960061,2886.9,2886.6,1.47211]
[1644703486338,0.00960061,2886.9,2886.6,2.47211]
[1644703486538,0.00960061,2886.9,2886.7,2.23268]
[1644703486775,0.00960061,2886.9,2886.7,0.801]
[1644703486979,0.00960061,2886.9,2886.7,1.801]
[1644703487176,0.1731,2888.2,2887.0,0.86584]
[1644703487377,0.02920253,2887.4,2887.0,0.86584]
[1644703487573,0.02920253,2887.4,2887.0,1.46584]
[1644703487777,0.02920253,2887.4,2887.0,0.6]
[1644703488175,0.02920253,2887.4,2886.8,0.6]
[1644703488379,0.001,2888.5,2887.0,1.4719]
[1644703488576,0.00730173,2887.3,2887.0,2.5729]
[1644703489075,0.00730173,2887.3,2887.1,1.0]
[1644703489480,0.1741,2888.6,2887.1,1.0]
[1644703489680,0.67304308,2887.6,2887.1,1.0]
[1644703489978,0.00730173,2887.3,2887.0,1.101]
[1644703490178,0.00730173,2887.3,2887.0,1.2741]
[1644703490622,0.1741,2888.6,2887.0,1.101]
[1644703490822,0.1741,2888.6,2887.0,2.57288]
[1644703490823,1.47360824,2888.5,2887.0,2.57288]
[1644703491026,0.00063194,2887.7,2887.1,4.4]
[1644703491257,0.00063194,2887.7,2887.1,5.4]
[1644703491422,0.00063194,2887.7,2887.1,4.4]
[1644703491625,0.00063194,2887.7,2887.2,1.0]
[1644703491827,0.00063194,2887.7,2887.0,1.97288]
[1644703491828,0.57185897,2887.1,2887.0,1.97288]
[1644703492429,0.57185897,2887.1,2887.0,0.501]
[1644703492629,0.57185897,2887.1,2886.8,0.1731]
[1644703494031,1.19050968,2887.1,2886.8,0.1731]
[1644703495469,1.24207258,2887.1,2886.7,0.1731]
[1644703495870,1.24207258,2887.1,2886.8,0.00956012]
[1644703496668,1.24207258,2887.1,2886.7,0.1731]
[1644703497073,1.24207258,2887.1,2886.8,0.00956012]
[1644703497473,0.59632936,2887.1,2886.8,0.00956012]
[1644703498019,0.59632936,2887.1,2886.7,0.1731]
[1644703498219,0.59632936,2887.1,2886.8,0.00956012]
[1644703498421,0.59632936,2887.1,2886.8,0.87546012]
[1644703498819,0.59632936,2887.1,2886.8,1.64856012]
[1644703499022,0.59632936,2887.1,2886.9,1.73152]
[1644703499223,0.59632936,2887.1,2886.9,2.73152]
[1644703499224,0.00012936,2887.1,2886.9,2.73152]
[1644703499422,0.01012518,2887.8,2887.0,7.6731]
[1644703499624,0.01012518,2887.8,2887.3,0.86573]
[1644703499824,0.01012518,2887.8,2887.4,0.1731]
[1644703500122,0.01012518,2887.8,2887.4,0.4731]
[1644703500420,0.64014382,2888.1,2887.4,0.7731]
[1644703500621,0.0072644,2887.8,2887.4,0.7731]
[1644703501521,0.64778673,2888.1,2887.4,0.7731]
[1644703501772,0.0072644,2887.8,2887.4,0.7731]
[1644703501973,0.0072644,2887.8,2887.4,1.37909]
[1644703502576,0.0072644,2887.8,2887.4,0.7731]
[1644703502775,0.55221505,2888.0,2887.4,0.7731]
[1644703502976,0.55221505,2888.0,2887.5,0.00957327]
[1644703502977,0.0101314,2887.8,2887.5,0.00957327]
[1644703503491,0.1731,2887.7,2887.5,0.00957327]
[1644703503978,0.0287198,2887.4,2885.9,1.03924]
[1644703504178,0.53180179,2886.3,2885.9,1.06614]
[1644703504377,0.1731,2887.3,2885.9,0.86614]
[1644703504378,8.041,2887.3,2885.9,0.86614]
[1644703504576,0.00354198,2887.2,2885.9,0.86614]
[1644703504778,0.00354198,2887.2,2885.8,0.1731]
[1644703504983,0.00354198,2887.2,2885.6,0.1731]
[1644703505177,5.00354198,2887.2,2885.6,0.1731]
[1644703505420,0.00354198,2887.2,2885.6,0.1731]
[1644703505620,0.56735962,2886.7,2885.6,0.1731]
[1644703507527,0.00354198,2887.2,2885.6,0.1731]
[1644703507726,0.1731,2887.1,2886.0,0.00955413]
[1644703507927,0.00354198,2887.0,2886.0,0.00955413]
[1644703508424,0.64562995,2886.7,2886.0,0.00955413]
[1644703508626,0.17664198,2887.2,2885.7,0.3]
[1644703509025,0.17664198,2887.2,2886.4,0.00955297]
[1644703509683,0.58474051,2886.8,2886.4,0.00955297]
[1644703509880,0.17664198,2887.2,2885.8,0.25]
[1644703509881,0.17664198,2887.2,2886.0,0.86611]
[1644703510085,0.00354198,2886.8,2886.1,0.1731]
[1644703510281,0.00354198,2887.1,2886.7,0.00955198]
[1644703510479,3.6552,2887.3,2886.7,0.00955198]
[1644703510480,0.00354198,2887.2,2886.7,0.00955198]
[1644703510683,3.6552,2887.3,2886.7,0.00955198]
[1644703510882,0.62967426,2886.9,2886.7,0.00955198]
[1644703511082,0.62967426,2886.9,2886.1,1.1731]
[1644703511281,0.00354198,2886.8,2886.1,1.7731]
[1644703512081,0.00354198,2887.2,2886.4,0.86599]
[1644703512280,0.00354198,2887.2,2886.4,1.11599]
[1644703512483,0.0287198,2887.4,2886.4,1.11599]
[1644703512684,0.0287198,2887.4,2886.5,0.6741]
[1644703512919,0.5913266,2887.4,2886.5,0.6741]
[1644703513123,0.00354198,2887.3,2886.5,0.6741]
[1644703513625,0.0287198,2887.4,2886.5,0.6741]
[1644703513825,0.0287198,2887.4,2886.8,0.00955165]
[1644703514025,0.0287198,2887.4,2886.9,0.1731]
[1644703514728,0.0287198,2887.4,2886.5,0.501]
[1644703514927,0.57622557,2887.4,2887.0,0.00955082]
[1644703515328,0.01910163,2886.9,2886.5,0.501]
[1644703516329,0.01910163,2886.9,2886.6,0.60611]
[1644703516530,0.01910163,2886.9,2886.7,0.1731]
[1644703517674,0.01910163,2886.9,2886.7,1.03901]
[1644703518073,0.01910163,2886.9,2886.7,1.63901]
[1644703518475,0.0287198,2887.4,2886.8,8.58256]
[1644703518676,0.0287198,2887.4,2886.9,0.1731]
[1644703518877,0.0287198,2887.4,2886.9,1.6741]
[1644703519375,0.0287198,2887.4,2886.9,1.9741]
[1644703519775,0.03599632,2887.4,2886.9,1.9741]
[1644703520424,0.03599632,2887.4,2886.9,0.501]
[1644703520620,0.0287198,2887.4,2886.9,1.101]
[1644703520821,0.0287198,2887.4,2886.9,0.801]
[1644703521019,0.03599632,2887.4,2886.9,0.501]
[1644703522025,0.0287198,2887.4,2886.9,0.501]
[1644703522225,0.02910158,2887.9,2886.9,0.501]
[1644703522426,0.00355397,2887.5,2886.9,0.501]
[1644703522626,0.1731,2887.8,2886.9,0.501]
[1644703522826,0.00355397,2887.7,2886.9,0.501]
[1644703523424,0.67625673,2887.6,2887.1,0.0028659]
[1644703524025,0.17665397,2888.2,2887.1,0.0028659]